[Event "Titled Tuesday Blitz September 27 Early 2022"]
[White "Goncalves, Davi Sulzbacher"]
[Black "Shashikant, Kutwal"]
[WhiteFideId "2154510"]
[BlackFideId "5006520"]
[WhiteElo "2107"]
[BlackElo "2321"]
[Result "1/2-1/2"]
[Round "04"]
[TimeControl "180+1"]
[Date "2022.09.27"]
[WhiteClock "0:00:39"]
[BlackClock "0:00:07"]

1. Nf3 {[%clk 0:03:00]}  Nf6 {[%clk 0:02:59]} 2. d4 {[%clk 0:03:01]}  g6 {[%clk 0:02:59]} 3. c4 {[%clk 0:03:01]}  Bg7 {[%clk 0:03:00]} 4. Nc3 {[%clk 0:03:02]}  O-O {[%clk 0:03:00]} 5. e4 {[%clk 0:03:02]}  d6 {[%clk 0:03:01]} 6. Be2 {[%clk 0:03:02]}  e5 {[%clk 0:03:00]} 7. O-O {[%clk 0:03:02]}  Na6 {[%clk 0:03:00]} 8. a3 {[%clk 0:02:58]}  c6 {[%clk 0:02:54]} 9. b4 {[%clk 0:02:56]}  Nc7 {[%clk 0:02:53]} 10. d5 {[%clk 0:02:52]}  a5 {[%clk 0:02:46]} 11. Be3 {[%clk 0:02:47]}  Na6 {[%clk 0:01:56]} 12. dxc6 {[%clk 0:02:36]}  bxc6 {[%clk 0:01:51]} 13. c5 {[%clk 0:02:14]}  dxc5 {[%clk 0:01:33]} 14. bxc5 {[%clk 0:02:14]}  Qxd1 {[%clk 0:01:24]} 15. Rfxd1 {[%clk 0:02:14]}  Ng4 {[%clk 0:01:24]} 16. Na4 {[%clk 0:02:08]}  Nxe3 {[%clk 0:01:22]} 17. fxe3 {[%clk 0:02:09]}  Be6 {[%clk 0:01:14]} 18. Rab1 {[%clk 0:02:03]}  Bh6 {[%clk 0:00:38]} 19. Kf2 {[%clk 0:02:01]}  f5 {[%clk 0:00:38]} 20. exf5 {[%clk 0:01:30]}  Bxf5 {[%clk 0:00:38]} 21. e4 {[%clk 0:01:30]}  Bxe4 {[%clk 0:00:31]} 22. Rb7 {[%clk 0:01:31]}  Bc2 {[%clk 0:00:27]} 23. Bc4+ {[%clk 0:01:28]}  Kh8 {[%clk 0:00:23]} 24. Rdd7 {[%clk 0:01:29]}  g5 {[%clk 0:00:23]} 25. Nb6 {[%clk 0:01:14]}  Nxc5 {[%clk 0:00:19]} 26. Nxa8 {[%clk 0:01:11]}  Nxd7 {[%clk 0:00:17]} 27. Rxd7 {[%clk 0:01:11]}  Rxa8 {[%clk 0:00:16]} 28. Nxe5 {[%clk 0:01:10]}  Rf8+ {[%clk 0:00:13]} 29. Kg3 {[%clk 0:01:08]}  Bg6 {[%clk 0:00:11]} 30. Bf7 {[%clk 0:01:00]}  Bxf7 {[%clk 0:00:04]} 31. Nxf7+ {[%clk 0:01:00]}  Kg7 {[%clk 0:00:04]} 32. Nxg5+ {[%clk 0:00:59]}  Kg6 {[%clk 0:00:03]} 33. Ne6 {[%clk 0:00:51]}  Rf6 {[%clk 0:00:03]} 34. Rd6 {[%clk 0:00:45]}  Kf5 {[%clk 0:00:01]} 35. Nd4+ {[%clk 0:00:44]}  Ke5 {[%clk 0:00:02]} 36. Rxf6 {[%clk 0:00:44]}  Kxf6 {[%clk 0:00:03]} 37. Nxc6 {[%clk 0:00:45]}  a4 {[%clk 0:00:03]} 38. Nd4 {[%clk 0:00:43]}  Bf8 {[%clk 0:00:02]} 39. Nb5 {[%clk 0:00:43]}  Kf5 {[%clk 0:00:02]} 40. Kf3 {[%clk 0:00:43]}  h5 {[%clk 0:00:02]} 41. g3 {[%clk 0:00:42]}  Kg5 {[%clk 0:00:02]} 42. h3 {[%clk 0:00:41]}  Kg6 {[%clk 0:00:02]} 43. g4 {[%clk 0:00:40]}  hxg4+ {[%clk 0:00:02]} 44. Kxg4 {[%clk 0:00:41]}  Be7 {[%clk 0:00:03]} 45. h4 {[%clk 0:00:41]}  Kh7 {[%clk 0:00:04]} 46. h5 {[%clk 0:00:40]}  Bf8 {[%clk 0:00:04]} 47. Kg5 {[%clk 0:00:39]}  Be7+ {[%clk 0:00:04]} 48. Kf5 {[%clk 0:00:39]}  Kh6 {[%clk 0:00:05]} 49. Kg4 {[%clk 0:00:40]}  Bf8 {[%clk 0:00:05]} 50. Nc3 {[%clk 0:00:40]}  Bxa3 {[%clk 0:00:05]} 51. Nxa4 {[%clk 0:00:41]}  Be7 {[%clk 0:00:06]} 52. Nc3 {[%clk 0:00:41]}  Kh7 {[%clk 0:00:07]} 53. Nd5 {[%clk 0:00:42]}  Bd8 {[%clk 0:00:07]} 54. Ne3 {[%clk 0:00:42]}  Bf6 {[%clk 0:00:07]} 55. Nf5 {[%clk 0:00:42]}  Ba1 {[%clk 0:00:07]} 56. Kg5 {[%clk 0:00:41]}  Bb2 {[%clk 0:00:08]} 57. Ng3 {[%clk 0:00:39]}  Bc1+ {[%clk 0:00:08]} 58. Kg4 {[%clk 0:00:39]}  Bb2 {[%clk 0:00:08]} 59. Ne4 {[%clk 0:00:39]}  Bc1 {[%clk 0:00:08]} 60. Kf5 {[%clk 0:00:37]}  Be3 {[%clk 0:00:08]} 61. Nf6+ {[%clk 0:00:37]}  Kh8 {[%clk 0:00:07]} 62. Kg6 {[%clk 0:00:36]}  Bc1 {[%clk 0:00:07]} 63. Nd5 {[%clk 0:00:35]}  Bd2 {[%clk 0:00:07]} 64. Ne7 {[%clk 0:00:36]}  Bc1 {[%clk 0:00:07]} 65. Nf5 {[%clk 0:00:36]}  Bd2 {[%clk 0:00:07]} 66. Nd6 {[%clk 0:00:37]}  Bc1 {[%clk 0:00:07]} 67. Nf7+ {[%clk 0:00:37]}  Kg8 {[%clk 0:00:08]} 68. Nd6 {[%clk 0:00:38]}  Kh8 {[%clk 0:00:08]} 69. Nf5 {[%clk 0:00:38]}  Kg8 {[%clk 0:00:08]} 70. h6 {[%clk 0:00:39]}  Bxh6 {[%clk 0:00:07]} 1/2-1/2


[Site "https://www.chess.com"]

[Event "Titled Tuesday Blitz September 27 Early 2022"]
[White "Gracia Alvarez, Gerardo Antonio"]
[Black "Bobomurodova, Maftuna"]
[WhiteFideId "5109124"]
[BlackFideId "14207400"]
[WhiteElo "2139"]
[BlackElo "1548"]
[Result "1-0"]
[Round "04"]
[TimeControl "180+1"]
[Date "2022.09.27"]
[WhiteClock "0:00:07"]
[BlackClock "0:00:58"]

1. d4 {[%clk 0:03:00]}  Nf6 {[%clk 0:02:59]} 2. Bf4 {[%clk 0:03:01]}  d5 {[%clk 0:02:57]} 3. Nf3 {[%clk 0:03:00]}  c5 {[%clk 0:02:55]} 4. e3 {[%clk 0:02:59]}  Nc6 {[%clk 0:02:54]} 5. Nbd2 {[%clk 0:02:59]}  Qb6 {[%clk 0:02:45]} 6. dxc5 {[%clk 0:02:58]}  Qxb2 {[%clk 0:02:44]} 7. Rb1 {[%clk 0:02:55]}  Qc3 {[%clk 0:02:43]} 8. Bb5 {[%clk 0:02:45]}  Qxc5 {[%clk 0:02:42]} 9. c4 {[%clk 0:02:35]}  e6 {[%clk 0:02:40]} 10. O-O {[%clk 0:02:30]}  Bd7 {[%clk 0:02:37]} 11. Qa4 {[%clk 0:02:13]}  Be7 {[%clk 0:02:34]} 12. cxd5 {[%clk 0:01:36]}  Nxd5 {[%clk 0:02:31]} 13. Ne4 {[%clk 0:01:32]}  Qa3 {[%clk 0:02:27]} 14. Qc4 {[%clk 0:01:04]}  O-O {[%clk 0:02:23]} 15. Bg3 {[%clk 0:00:48]}  a6 {[%clk 0:02:18]} 16. Bxc6 {[%clk 0:00:47]}  Bxc6 {[%clk 0:02:17]} 17. Nd4 {[%clk 0:00:39]}  Rac8 {[%clk 0:02:10]} 18. Qe2 {[%clk 0:00:39]}  b5 {[%clk 0:02:07]} 19. h4 {[%clk 0:00:34]}  Ba8 {[%clk 0:01:58]} 20. h5 {[%clk 0:00:33]}  Nc3 {[%clk 0:01:56]} 21. Nxc3 {[%clk 0:00:32]}  Rxc3 {[%clk 0:01:57]} 22. Qg4 {[%clk 0:00:29]}  Bf6 {[%clk 0:01:53]} 23. h6 {[%clk 0:00:20]}  g6 {[%clk 0:01:46]} 24. Nf3 {[%clk 0:00:15]}  Rc4 {[%clk 0:01:42]} 25. Qh3 {[%clk 0:00:14]}  Qxa2 {[%clk 0:01:40]} 26. Ne5 {[%clk 0:00:14]}  Bxe5 {[%clk 0:01:13]} 27. Bxe5 {[%clk 0:00:13]}  Bd5 {[%clk 0:01:11]} 28. Qg3 {[%clk 0:00:12]}  f6 {[%clk 0:01:10]} 29. Bd4 {[%clk 0:00:11]}  e5 {[%clk 0:01:08]} 30. Ba1 {[%clk 0:00:11]}  Rfc8 {[%clk 0:01:07]} 31. Rbd1 {[%clk 0:00:11]}  Bf7 {[%clk 0:01:07]} 32. Qf3 {[%clk 0:00:11]}  R4c7 {[%clk 0:01:07]} 33. Qxf6 {[%clk 0:00:10]}  Bc4 {[%clk 0:01:05]} 34. Bxe5 {[%clk 0:00:09]}  Bxf1 {[%clk 0:01:02]} 35. Qh8+ {[%clk 0:00:09]}  Kf7 {[%clk 0:01:01]} 36. Bxc7 {[%clk 0:00:08]}  Bc4 {[%clk 0:00:58]} 37. Qxc8 {[%clk 0:00:07]} 1-0


[Site "https://www.chess.com"]

[Event "Titled Tuesday Blitz September 27 Early 2022"]
[White "Gu, Xiaobing"]
[Black "Ernst, Sipke"]
[WhiteFideId "8602611"]
[BlackFideId "1004689"]
[WhiteElo "2174"]
[BlackElo "2436"]
[Result "0-1"]
[Round "04"]
[TimeControl "180+1"]
[Date "2022.09.27"]
[WhiteClock "0:00:02"]
[BlackClock "0:00:05"]

1. e4 {[%clk 0:03:00]}  e5 {[%clk 0:02:59]} 2. Nc3 {[%clk 0:02:56]}  Nf6 {[%clk 0:02:58]} 3. g3 {[%clk 0:02:56]}  d5 {[%clk 0:02:58]} 4. exd5 {[%clk 0:02:55]}  Nxd5 {[%clk 0:02:58]} 5. Bg2 {[%clk 0:02:55]}  Nxc3 {[%clk 0:02:59]} 6. bxc3 {[%clk 0:02:55]}  Nc6 {[%clk 0:02:59]} 7. Nf3 {[%clk 0:02:55]}  Bd6 {[%clk 0:02:59]} 8. O-O {[%clk 0:02:55]}  O-O {[%clk 0:02:59]} 9. Re1 {[%clk 0:02:49]}  Bg4 {[%clk 0:02:55]} 10. Rb1 {[%clk 0:02:48]}  Rb8 {[%clk 0:02:54]} 11. h3 {[%clk 0:02:47]}  Bh5 {[%clk 0:02:53]} 12. d4 {[%clk 0:02:40]}  Re8 {[%clk 0:02:48]} 13. g4 {[%clk 0:02:31]}  Bg6 {[%clk 0:02:47]} 14. dxe5 {[%clk 0:02:20]}  Nxe5 {[%clk 0:02:47]} 15. Nxe5 {[%clk 0:02:21]}  Bxe5 {[%clk 0:02:47]} 16. Qxd8 {[%clk 0:02:16]}  Rbxd8 {[%clk 0:02:47]} 17. Rxb7 {[%clk 0:01:53]}  Bxc2 {[%clk 0:02:46]} 18. Be3 {[%clk 0:01:41]}  a5 {[%clk 0:02:39]} 19. c4 {[%clk 0:01:22]}  Ba4 {[%clk 0:01:49]} 20. Bd5 {[%clk 0:01:19]}  Bd7 {[%clk 0:01:21]} 21. Bd2 {[%clk 0:00:46]}  a4 {[%clk 0:01:08]} 22. Bg5 {[%clk 0:00:44]}  Rc8 {[%clk 0:01:05]} 23. Rd1 {[%clk 0:00:44]}  h6 {[%clk 0:00:40]} 24. Be3 {[%clk 0:00:29]}  Rcd8 {[%clk 0:00:36]} 25. Bc5 {[%clk 0:00:21]}  Bf4 {[%clk 0:00:29]} 26. Kf1 {[%clk 0:00:18]}  h5 {[%clk 0:00:28]} 27. Bf3 {[%clk 0:00:16]}  hxg4 {[%clk 0:00:27]} 28. hxg4 {[%clk 0:00:16]}  Be6 {[%clk 0:00:27]} 29. Rxd8 {[%clk 0:00:15]}  Bxc4+ {[%clk 0:00:23]} 30. Be2 {[%clk 0:00:11]}  Bxe2+ {[%clk 0:00:22]} 31. Ke1 {[%clk 0:00:12]}  Rxd8 {[%clk 0:00:22]} 32. Kxe2 {[%clk 0:00:12]}  Rd5 {[%clk 0:00:22]} 33. Be3 {[%clk 0:00:11]}  Re5 {[%clk 0:00:19]} 34. Ra7 {[%clk 0:00:10]}  Bxe3 {[%clk 0:00:19]} 35. fxe3 {[%clk 0:00:11]}  Re4 {[%clk 0:00:19]} 36. Kf3 {[%clk 0:00:11]}  Rc4 {[%clk 0:00:20]} 37. a3 {[%clk 0:00:10]}  g6 {[%clk 0:00:20]} 38. g5 {[%clk 0:00:09]}  Kg7 {[%clk 0:00:20]} 39. e4 {[%clk 0:00:09]}  Kf8 {[%clk 0:00:19]} 40. Kf4 {[%clk 0:00:08]}  Ke7 {[%clk 0:00:20]} 41. Ke5 {[%clk 0:00:08]}  Rc5+ {[%clk 0:00:20]} 42. Kf4 {[%clk 0:00:08]}  Rc4 {[%clk 0:00:19]} 43. Ke5 {[%clk 0:00:09]}  Kf8 {[%clk 0:00:13]} 44. Kf6 {[%clk 0:00:08]}  Rc6+ {[%clk 0:00:13]} 45. Ke5 {[%clk 0:00:08]}  Rc5+ {[%clk 0:00:13]} 46. Kf6 {[%clk 0:00:08]}  Rc6+ {[%clk 0:00:13]} 47. Ke5 {[%clk 0:00:08]}  Rc3 {[%clk 0:00:07]} 48. Rxa4 {[%clk 0:00:06]}  Ke7 {[%clk 0:00:08]} 49. Ra7 {[%clk 0:00:06]}  Kd7 {[%clk 0:00:06]} 50. a4 {[%clk 0:00:06]}  Rg3 {[%clk 0:00:05]} 51. Kf4 {[%clk 0:00:05]}  Rg1 {[%clk 0:00:05]} 52. a5 {[%clk 0:00:05]}  Rf1+ {[%clk 0:00:05]} 53. Ke5 {[%clk 0:00:04]}  Kc6 {[%clk 0:00:06]} 54. Ra8 {[%clk 0:00:03]}  Rf3 {[%clk 0:00:05]} 55. a6 {[%clk 0:00:02]}  Kb6 {[%clk 0:00:05]} 0-1


[Site "https://www.chess.com"]

[Event "Titled Tuesday Blitz September 27 Early 2022"]
[White "Guerrero Olmos, Sergio"]
[Black "Albertini, Luca"]
[WhiteFideId "2257238"]
[BlackFideId "847038"]
[WhiteElo "2259"]
[BlackElo "2207"]
[Result "1-0"]
[Round "04"]
[TimeControl "180+1"]
[Date "2022.09.27"]
[WhiteClock "0:01:11"]
[BlackClock "0:01:53"]

1. d4 {[%clk 0:03:00]}  d5 {[%clk 0:02:53]} 2. Nf3 {[%clk 0:03:00]}  Nf6 {[%clk 0:02:52]} 3. Bf4 {[%clk 0:03:01]}  Bf5 {[%clk 0:02:52]} 4. e3 {[%clk 0:03:01]}  c5 {[%clk 0:02:52]} 5. c3 {[%clk 0:03:00]}  Qb6 {[%clk 0:02:52]} 6. Qb3 {[%clk 0:02:58]}  c4 {[%clk 0:02:52]} 7. Qxb6 {[%clk 0:02:55]}  axb6 {[%clk 0:02:53]} 8. Na3 {[%clk 0:02:55]}  Nc6 {[%clk 0:02:50]} 9. Nb5 {[%clk 0:02:51]}  Ra5 {[%clk 0:02:48]} 10. a4 {[%clk 0:02:48]}  Kd7 {[%clk 0:02:45]} 11. h3 {[%clk 0:02:45]}  h6 {[%clk 0:02:43]} 12. Be2 {[%clk 0:02:38]}  g5 {[%clk 0:02:42]} 13. Bc7 {[%clk 0:02:33]}  Ra6 {[%clk 0:02:40]} 14. O-O {[%clk 0:02:18]}  Bg7 {[%clk 0:02:37]} 15. Bh2 {[%clk 0:02:06]}  Ne4 {[%clk 0:02:27]} 16. Rfd1 {[%clk 0:02:05]}  Nd6 {[%clk 0:02:24]} 17. Nxd6 {[%clk 0:01:58]}  exd6 {[%clk 0:02:25]} 18. b3 {[%clk 0:01:57]}  Bc2 {[%clk 0:02:20]} 19. bxc4 {[%clk 0:01:51]}  Bxd1 {[%clk 0:02:19]} 20. Rxd1 {[%clk 0:01:49]}  Rxa4 {[%clk 0:02:16]} 21. cxd5 {[%clk 0:01:48]}  Na5 {[%clk 0:02:16]} 22. Bb5+ {[%clk 0:01:48]}  Ke7 {[%clk 0:02:09]} 23. Bxa4 {[%clk 0:01:48]}  Ra8 {[%clk 0:02:10]} 24. Bb5 {[%clk 0:01:47]}  Nb3 {[%clk 0:02:10]} 25. c4 {[%clk 0:01:45]}  Ra2 {[%clk 0:02:08]} 26. Bg3 {[%clk 0:01:43]}  f5 {[%clk 0:02:08]} 27. Rb1 {[%clk 0:01:35]}  Na5 {[%clk 0:02:06]} 28. h4 {[%clk 0:01:31]}  Bf6 {[%clk 0:02:03]} 29. hxg5 {[%clk 0:01:31]}  hxg5 {[%clk 0:02:04]} 30. Kf1 {[%clk 0:01:19]}  Rc2 {[%clk 0:02:04]} 31. Ne1 {[%clk 0:01:17]}  Rc3 {[%clk 0:02:01]} 32. Ke2 {[%clk 0:01:17]}  f4 {[%clk 0:01:57]} 33. exf4 {[%clk 0:01:10]}  gxf4 {[%clk 0:01:58]} 34. Bxf4 {[%clk 0:01:10]}  Bxd4 {[%clk 0:01:58]} 35. Bd2 {[%clk 0:01:11]}  Ra3 {[%clk 0:01:53]} 36. Nc2 {[%clk 0:01:11]} 1-0


[Site "https://www.chess.com"]

[Event "Titled Tuesday Blitz September 27 Early 2022"]
[White "Guliev, Logman"]
[Black "Foerster-Yialamas, Lucas"]
[WhiteFideId "13400061"]
[BlackFideId "30901774"]
[WhiteElo "2128"]
[BlackElo "1804"]
[Result "1-0"]
[Round "04"]
[TimeControl "180+1"]
[Date "2022.09.27"]
[WhiteClock "0:00:10"]
[BlackClock "0:00:17"]

1. c4 {[%clk 0:03:00]}  c5 {[%clk 0:02:59]} 2. g3 {[%clk 0:03:01]}  Nc6 {[%clk 0:02:59]} 3. Bg2 {[%clk 0:03:01]}  Nf6 {[%clk 0:02:56]} 4. Nf3 {[%clk 0:03:01]}  d5 {[%clk 0:02:55]} 5. cxd5 {[%clk 0:03:00]}  Nxd5 {[%clk 0:02:56]} 6. O-O {[%clk 0:03:01]}  e5 {[%clk 0:02:56]} 7. Nc3 {[%clk 0:03:00]}  Be6 {[%clk 0:02:55]} 8. d3 {[%clk 0:02:59]}  Be7 {[%clk 0:02:55]} 9. Bd2 {[%clk 0:02:58]}  O-O {[%clk 0:02:53]} 10. Rc1 {[%clk 0:02:58]}  Qd7 {[%clk 0:02:46]} 11. Nxd5 {[%clk 0:02:58]}  Bxd5 {[%clk 0:02:46]} 12. Bc3 {[%clk 0:02:58]}  f6 {[%clk 0:02:45]} 13. Qa4 {[%clk 0:02:53]}  Rfd8 {[%clk 0:02:43]} 14. Nd2 {[%clk 0:02:35]}  Nd4 {[%clk 0:02:33]} 15. Bxd5+ {[%clk 0:02:29]}  Qxd5 {[%clk 0:02:32]} 16. Bxd4 {[%clk 0:02:29]}  exd4 {[%clk 0:02:27]} 17. Qc4 {[%clk 0:02:22]}  b6 {[%clk 0:02:17]} 18. a4 {[%clk 0:02:21]}  Kf7 {[%clk 0:02:12]} 19. Qa6 {[%clk 0:02:19]}  Qf5 {[%clk 0:02:00]} 20. Rfe1 {[%clk 0:02:12]}  Rd5 {[%clk 0:01:59]} 21. Nc4 {[%clk 0:02:07]}  Qh3 {[%clk 0:01:53]} 22. Qb7 {[%clk 0:01:57]}  Rad8 {[%clk 0:01:48]} 23. e3 {[%clk 0:01:45]}  R8d7 {[%clk 0:01:46]} 24. Qc6 {[%clk 0:01:44]}  dxe3 {[%clk 0:01:44]} 25. Rxe3 {[%clk 0:01:43]}  Rxd3 {[%clk 0:01:31]} 26. Rxd3 {[%clk 0:01:27]}  Rxd3 {[%clk 0:01:32]} 27. Re1 {[%clk 0:01:25]}  Qd7 {[%clk 0:01:32]} 28. Qe4 {[%clk 0:01:19]}  Rd1 {[%clk 0:01:27]} 29. Rxd1 {[%clk 0:01:16]}  Qxd1+ {[%clk 0:01:28]} 30. Kg2 {[%clk 0:01:17]}  g6 {[%clk 0:01:24]} 31. Ne3 {[%clk 0:01:07]}  Qd7 {[%clk 0:01:22]} 32. b3 {[%clk 0:01:04]}  f5 {[%clk 0:01:21]} 33. Qa8 {[%clk 0:01:01]}  Kg7 {[%clk 0:01:20]} 34. Nd5 {[%clk 0:00:58]}  Bf6 {[%clk 0:01:14]} 35. Qg8+ {[%clk 0:00:55]}  Kh6 {[%clk 0:00:59]} 36. Nxf6 {[%clk 0:00:54]}  Qe7 {[%clk 0:00:48]} 37. Nd5 {[%clk 0:00:31]}  Qe4+ {[%clk 0:00:46]} 38. f3 {[%clk 0:00:29]}  Qe2+ {[%clk 0:00:38]} 39. Kh3 {[%clk 0:00:29]}  Qxf3 {[%clk 0:00:34]} 40. Qf8+ {[%clk 0:00:29]}  Kh5 {[%clk 0:00:25]} 41. Nf4+ {[%clk 0:00:22]}  Kg5 {[%clk 0:00:25]} 42. Qd8+ {[%clk 0:00:18]}  Kh6 {[%clk 0:00:24]} 43. Qh4+ {[%clk 0:00:17]}  Kg7 {[%clk 0:00:22]} 44. Ne6+ {[%clk 0:00:17]}  Kg8 {[%clk 0:00:13]} 45. Qxh7+ {[%clk 0:00:16]}  Kxh7 {[%clk 0:00:12]} 46. Ng5+ {[%clk 0:00:15]}  Kg7 {[%clk 0:00:13]} 47. Nxf3 {[%clk 0:00:15]}  Kf6 {[%clk 0:00:14]} 48. Kg2 {[%clk 0:00:14]}  a6 {[%clk 0:00:14]} 49. Kf2 {[%clk 0:00:15]}  b5 {[%clk 0:00:15]} 50. a5 {[%clk 0:00:15]}  Ke6 {[%clk 0:00:15]} 51. Ke3 {[%clk 0:00:15]}  Kd5 {[%clk 0:00:15]} 52. h4 {[%clk 0:00:14]}  c4 {[%clk 0:00:13]} 53. b4 {[%clk 0:00:14]}  c3 {[%clk 0:00:13]} 54. Kd3 {[%clk 0:00:13]}  c2 {[%clk 0:00:14]} 55. Kxc2 {[%clk 0:00:13]}  Kc4 {[%clk 0:00:15]} 56. Ne5+ {[%clk 0:00:13]}  Kxb4 {[%clk 0:00:15]} 57. Nxg6 {[%clk 0:00:13]}  Kxa5 {[%clk 0:00:16]} 58. h5 {[%clk 0:00:13]}  Ka4 {[%clk 0:00:16]} 59. h6 {[%clk 0:00:14]}  Ka3 {[%clk 0:00:17]} 60. h7 {[%clk 0:00:14]}  b4 {[%clk 0:00:16]} 61. h8=Q {[%clk 0:00:14]}  b3+ {[%clk 0:00:17]} 62. Kb1 {[%clk 0:00:13]}  f4 {[%clk 0:00:18]} 63. Qc3 {[%clk 0:00:13]}  fxg3 {[%clk 0:00:17]} 64. Qxg3 {[%clk 0:00:13]}  a5 {[%clk 0:00:17]} 65. Ne5 {[%clk 0:00:12]}  a4 {[%clk 0:00:18]} 66. Qg4 {[%clk 0:00:10]}  b2 {[%clk 0:00:17]} 67. Nc4+ {[%clk 0:00:10]}  Kb3 {[%clk 0:00:17]} 68. Nxb2 {[%clk 0:00:10]}  a3 {[%clk 0:00:17]} 69. Qc4# {[%clk 0:00:10]} 1-0


[Site "https://www.chess.com"]

[Event "Titled Tuesday Blitz September 27 Early 2022"]
[White "Hafiz, Arif Abdul"]
[Black "Poltorak, Sebastian"]
[WhiteFideId "7104227"]
[BlackFideId "1199498"]
[WhiteElo "2198"]
[BlackElo "2104"]
[Result "1-0"]
[Round "04"]
[TimeControl "180+1"]
[Date "2022.09.27"]
[WhiteClock "0:00:14"]
[BlackClock "0:00:02"]

1. e4 {[%clk 0:03:00]}  c6 {[%clk 0:02:58]} 2. d4 {[%clk 0:03:00]}  d5 {[%clk 0:02:58]} 3. e5 {[%clk 0:03:01]}  c5 {[%clk 0:02:58]} 4. dxc5 {[%clk 0:02:58]}  e6 {[%clk 0:02:57]} 5. Be3 {[%clk 0:02:58]}  Nd7 {[%clk 0:02:55]} 6. f4 {[%clk 0:02:49]}  Bxc5 {[%clk 0:02:43]} 7. Bxc5 {[%clk 0:02:47]}  Nxc5 {[%clk 0:02:44]} 8. Nc3 {[%clk 0:02:43]}  Bd7 {[%clk 0:02:31]} 9. Nf3 {[%clk 0:02:40]}  Ne7 {[%clk 0:02:22]} 10. Bd3 {[%clk 0:02:39]}  Qb6 {[%clk 0:02:18]} 11. Qd2 {[%clk 0:02:09]}  Rc8 {[%clk 0:01:59]} 12. O-O-O {[%clk 0:02:03]}  a6 {[%clk 0:01:47]} 13. f5 {[%clk 0:02:01]}  Nxd3+ {[%clk 0:01:46]} 14. Qxd3 {[%clk 0:01:56]}  Nxf5 {[%clk 0:01:44]} 15. Kb1 {[%clk 0:01:56]}  Bb5 {[%clk 0:01:38]} 16. Qd2 {[%clk 0:01:48]}  O-O {[%clk 0:01:19]} 17. Rhe1 {[%clk 0:01:45]}  Rfd8 {[%clk 0:01:12]} 18. g4 {[%clk 0:01:45]}  Ne7 {[%clk 0:01:09]} 19. Nd4 {[%clk 0:01:42]}  Nc6 {[%clk 0:01:04]} 20. Nf3 {[%clk 0:01:20]}  Na5 {[%clk 0:00:59]} 21. Qd4 {[%clk 0:01:11]}  Qxd4 {[%clk 0:00:57]} 22. Nxd4 {[%clk 0:01:12]}  Be8 {[%clk 0:00:55]} 23. Nce2 {[%clk 0:01:06]}  Nc4 {[%clk 0:00:53]} 24. Nf4 {[%clk 0:01:06]}  Na5 {[%clk 0:00:41]} 25. b3 {[%clk 0:01:02]}  Nc6 {[%clk 0:00:40]} 26. Nf3 {[%clk 0:00:59]}  Rc7 {[%clk 0:00:36]} 27. a3 {[%clk 0:00:57]}  Rdc8 {[%clk 0:00:33]} 28. Rd2 {[%clk 0:00:58]}  Na7 {[%clk 0:00:30]} 29. Kb2 {[%clk 0:00:57]}  a5 {[%clk 0:00:28]} 30. h4 {[%clk 0:00:54]}  Nb5 {[%clk 0:00:27]} 31. a4 {[%clk 0:00:51]}  Nc3 {[%clk 0:00:28]} 32. Nd4 {[%clk 0:00:47]}  Ne4 {[%clk 0:00:28]} 33. Rg2 {[%clk 0:00:45]}  Nc3 {[%clk 0:00:26]} 34. g5 {[%clk 0:00:44]}  b5 {[%clk 0:00:26]} 35. axb5 {[%clk 0:00:43]}  Nxb5 {[%clk 0:00:26]} 36. Nxb5 {[%clk 0:00:43]}  Bxb5 {[%clk 0:00:27]} 37. Ra1 {[%clk 0:00:44]}  Ra7 {[%clk 0:00:25]} 38. h5 {[%clk 0:00:40]}  a4 {[%clk 0:00:22]} 39. h6 {[%clk 0:00:40]}  g6 {[%clk 0:00:20]} 40. Rd2 {[%clk 0:00:34]}  Kf8 {[%clk 0:00:20]} 41. Ng2 {[%clk 0:00:30]}  Rca8 {[%clk 0:00:18]} 42. Ra3 {[%clk 0:00:29]}  axb3 {[%clk 0:00:18]} 43. Rxa7 {[%clk 0:00:29]}  Rxa7 {[%clk 0:00:18]} 44. cxb3 {[%clk 0:00:30]}  Ke7 {[%clk 0:00:16]} 45. Ne3 {[%clk 0:00:30]}  Bd7 {[%clk 0:00:15]} 46. Ng4 {[%clk 0:00:31]}  Rb7 {[%clk 0:00:12]} 47. Rd4 {[%clk 0:00:30]}  Bb5 {[%clk 0:00:05]} 48. Nf6 {[%clk 0:00:30]}  Bc4 {[%clk 0:00:05]} 49. Nxh7 {[%clk 0:00:27]}  Rxb3+ {[%clk 0:00:06]} 50. Kc2 {[%clk 0:00:28]}  Rh3 {[%clk 0:00:04]} 51. Nf6 {[%clk 0:00:25]}  Kd8 {[%clk 0:00:04]} 52. Rf4 {[%clk 0:00:20]}  Ke7 {[%clk 0:00:04]} 53. Kc1 {[%clk 0:00:18]}  Kd8 {[%clk 0:00:03]} 54. Rf2 {[%clk 0:00:18]}  Ke7 {[%clk 0:00:03]} 55. Rb2 {[%clk 0:00:18]}  Rh1+ {[%clk 0:00:03]} 56. Kd2 {[%clk 0:00:19]}  Rh2+ {[%clk 0:00:04]} 57. Kc1 {[%clk 0:00:17]}  Rh1+ {[%clk 0:00:04]} 58. Kc2 {[%clk 0:00:18]}  Rh2+ {[%clk 0:00:05]} 59. Kc3 {[%clk 0:00:18]}  Rh3+ {[%clk 0:00:05]} 60. Kd4 {[%clk 0:00:18]}  Rh4+ {[%clk 0:00:05]} 61. Kc5 {[%clk 0:00:18]}  Bd3 {[%clk 0:00:03]} 62. Rb7+ {[%clk 0:00:18]}  Kd8 {[%clk 0:00:04]} 63. Rb8+ {[%clk 0:00:17]}  Kc7 {[%clk 0:00:04]} 64. Rb4 {[%clk 0:00:15]}  Rh1 {[%clk 0:00:03]} 65. h7 {[%clk 0:00:15]}  Bf5 {[%clk 0:00:03]} 66. Ra4 {[%clk 0:00:14]}  Kb7 {[%clk 0:00:02]} 67. Kd6 {[%clk 0:00:14]} 1-0


[Site "https://www.chess.com"]